bitfinex-derivatives/quotes_BTCF0:USTF0_20250313
["timestamp","ask_amount","ask_price","bid_price","bid_amount"]
[1741847987139,0.1203973,83065.0,83059.0,0.8924859]
[1741847987446,0.060198,83066.0,83065.0,0.0601973]
[1741847987638,0.060198,83066.0,83065.0,0.3101973]
[1741847988245,0.00018063,83068.0,83065.0,0.3201973]
[1741847988450,0.12057443,83068.0,83066.0,0.031]
[1741847988647,0.12057443,83068.0,83067.0,0.1203943]
[1741847988842,0.12057443,83068.0,83067.0,0.3803943]
[1741847989042,0.12057443,83068.0,83067.0,0.4113943]
[1741847989243,0.00018063,83068.0,83067.0,0.42321453]
[1741847989646,0.00018063,83068.0,83067.0,0.45391453]
[1741847990343,0.00218063,83068.0,83067.0,0.46289753]
[1741847990548,0.12257353,83068.0,83067.0,0.4420943]
[1741847991350,0.12757353,83068.0,83067.0,0.4420943]
[1741847991845,0.12757353,83068.0,83067.0,0.45424552]
[1741847992745,0.12757353,83068.0,83067.0,0.3217]
[1741847992952,0.18997353,83068.0,83067.0,0.4420943]
[1741847994349,0.18997353,83068.0,83067.0,0.45426965]
[1741847996352,0.18997353,83068.0,83067.0,0.4420943]
[1741847996951,0.18997353,83068.0,83067.0,0.45439031]
[1741848000751,0.18997353,83068.0,83067.0,0.33399601]
[1741848001546,0.18997353,83068.0,83067.0,0.45439031]
[1741848005256,0.03728063,83068.0,83067.0,0.45439031]
[1741848005458,0.15767353,83068.0,83067.0,0.45439031]
[1741848005649,0.18977353,83068.0,83067.0,0.45439031]
[1741848009157,0.06938063,83068.0,83067.0,0.45439031]
[1741848009453,0.18977353,83068.0,83067.0,0.45439031]
[1741848011157,0.06938063,83068.0,83067.0,0.85635031]
[1741848011346,3e-08,83068.0,83067.0,0.57635031]
[1741848011546,0.0632,83080.0,83079.0,0.1203769]
[1741848011751,0.10783296,83082.0,83079.0,0.1203769]
[1741848011752,0.10783296,83082.0,83081.0,0.120374]
[1741848012056,0.22820556,83082.0,83081.0,0.380374]
[1741848012257,0.10783296,83082.0,83081.0,0.380374]
[1741848012452,0.10783296,83082.0,83081.0,0.410774]
[1741848012648,0.10783296,83082.0,83081.0,0.532734]
[1741848012853,0.22820556,83082.0,83081.0,0.41236]
[1741848013260,0.22920556,83082.0,83081.0,0.38196]
[1741848013858,0.29200556,83082.0,83081.0,0.38196]
[1741848014064,0.17163296,83082.0,83081.0,0.502334]
[1741848014356,0.29200556,83082.0,83081.0,0.38196]
[1741848014564,0.29200556,83082.0,83081.0,0.37196]
[1741848015064,0.29200556,83082.0,83081.0,0.370374]
[1741848015566,0.1841726,83082.0,83081.0,0.370374]
[1741848018871,0.1841726,83082.0,83081.0,0.390374]
[1741848019066,0.001,83082.0,83081.0,0.390374]
[1741848019363,0.1213726,83082.0,83081.0,0.390374]
[1741848020253,0.1835726,83082.0,83081.0,0.390374]
[1741848020965,0.1835726,83082.0,83081.0,0.27]
[1741848021159,0.1835726,83082.0,83081.0,0.25]
[1741848021868,0.1835726,83082.0,83081.0,0.401174]
[1741848024969,0.001,83082.0,83081.0,0.451174]
[1741848026760,0.1532726,83082.0,83081.0,0.451174]
[1741848027565,0.0329,83082.0,83081.0,0.451174]
[1741848028259,0.001,83082.0,83081.0,0.451174]
[1741848030075,0.1213726,83082.0,83081.0,0.451174]
[1741848031869,0.001,83082.0,83081.0,0.451174]
[1741848032860,0.1213726,83082.0,83081.0,0.451174]
[1741848033764,0.1213726,83082.0,83081.0,0.573094]
[1741848037870,0.001,83082.0,83081.0,0.573094]
[1741848038281,0.1213726,83082.0,83081.0,0.573094]
[1741848040170,0.1213726,83082.0,83081.0,0.603494]
[1741848041574,0.001,83082.0,83081.0,0.603494]
[1741848042081,0.1213726,83082.0,83081.0,0.603494]
[1741848043883,0.1213726,83082.0,83081.0,0.603454]
[1741848045583,0.001,83082.0,83081.0,0.603454]
[1741848047474,0.1213726,83082.0,83081.0,0.603454]
[1741848048083,0.10783296,83084.0,83081.0,0.603454]
[1741848048278,0.10783296,83084.0,83083.0,0.1203711]
[1741848048474,0.10783296,83084.0,83083.0,0.6603711]
[1741848048682,0.22820266,83084.0,83083.0,0.6603711]
[1741848048978,0.10783296,83084.0,83083.0,0.6603711]
[1741848049481,0.10883296,83084.0,83083.0,0.6603711]
[1741848049685,0.17013296,83084.0,83083.0,0.6603711]
[1741848049883,0.13853296,83084.0,83083.0,0.6603711]
[1741848050181,0.14053296,83084.0,83083.0,0.6603711]
[1741848050580,0.17113296,83084.0,83083.0,0.6603711]
[1741848050883,0.0633,83084.0,83083.0,0.6603711]
[1741848051179,0.1836697,83084.0,83083.0,0.6603711]
[1741848051381,0.1846697,83084.0,83083.0,0.6603711]
[1741848051776,0.0643,83084.0,83083.0,0.6603711]
[1741848052383,0.0951,83084.0,83083.0,0.6603711]
[1741848053888,0.0951,83084.0,83083.0,0.7237711]
[1741848054080,0.0951,83084.0,83083.0,1.13427421]
[1741848056989,0.0951,83084.0,83083.0,0.8456111]
[1741848059294,0.003,83084.0,83083.0,0.8456111]
[1741848063592,0.003,83084.0,83083.0,1.13427854]
[1741848066888,0.1233697,83084.0,83083.0,1.07083854]
[1741848067093,0.003,83084.0,83083.0,1.07083854]
[1741848067695,0.1545697,83084.0,83083.0,1.07083854]
[1741848069295,0.0342,83084.0,83083.0,1.07083854]
[1741848069701,0.0663,83084.0,83083.0,0.6603711]
[1741848069895,0.0663,83084.0,83083.0,0.7821711]
[1741848070802,0.1866697,83084.0,83083.0,0.7821711]
[1741848072391,0.0663,83084.0,83083.0,0.7821711]
[1741848072594,0.17413296,83084.0,83083.0,0.6603711]
[1741848072891,0.17413296,83084.0,83083.0,0.2421711]
[1741848073097,0.17413296,83084.0,83083.0,0.2743711]
[1741848076991,0.0663,83084.0,83083.0,0.56303854]
[1741848078207,0.1866697,83084.0,83083.0,0.56303854]
[1741848079600,0.0663,83084.0,83083.0,0.56303854]
[1741848080507,0.0663,83084.0,83083.0,0.2743711]
[1741848082000,0.0663,83084.0,83083.0,0.2743311]
[1741848084296,0.1866697,83084.0,83083.0,0.2743311]
[1741848085296,0.1866697,83084.0,83083.0,0.12176]
[1741848086009,0.1866697,83084.0,83083.0,0.2421311]
[1741848087205,0.29450266,83084.0,83083.0,0.2421311]
[1741848090518,0.1866697,83084.0,83083.0,0.2421311]
[1741848093115,0.1866697,83084.0,83083.0,0.1203711]
[1741848093517,0.1866697,83084.0,83083.0,0.1507711]
[1741848095406,0.1203711,83083.0,83082.0,0.12176]
[1741848095815,0.1840711,83083.0,83079.0,0.21649937]
[1741848096014,0.1203755,83080.0,83079.0,0.21649937]
[1741848096912,0.1840755,83080.0,83079.0,0.21649937]
[1741848097514,0.1962372,83080.0,83079.0,0.21649937]
[1741848097714,0.1972372,83080.0,83079.0,0.21649937]
[1741848099308,0.1203842,83074.0,83073.0,0.00018063]
[1741848100319,0.1839842,83074.0,83073.0,0.00018063]
[1741848100506,0.1839842,83074.0,83073.0,0.00218063]
[1741848100908,0.1839842,83074.0,83073.0,0.00318063]
[1741848102710,0.3339842,83074.0,83071.0,0.21649937]
[1741848102915,0.0601957,83069.0,83062.0,0.21621633]
[1741848103110,0.1204001,83063.0,83062.0,0.21621633]
[1741848103321,0.1204001,83063.0,83062.0,0.16631633]
[1741848103520,0.2704001,83063.0,83057.0,0.2887536]
[1741848103821,0.2704001,83063.0,83044.0,0.12176]
[1741848103822,0.119419,83050.0,83044.0,0.12176]
[1741848104026,0.13140986,83050.0,83045.0,0.1204256]
[1741848104724,0.12740986,83050.0,83045.0,0.1204256]
[1741848104928,0.12740986,83050.0,83042.0,0.55306109]
[1741848105220,0.12940986,83050.0,83042.0,0.55306079]
[1741848105419,0.12940986,83050.0,83042.0,0.43263109]
[1741848105622,0.12740986,83050.0,83042.0,0.43263109]
[1741848106423,0.12940986,83050.0,83042.0,0.43263109]
[1741848106818,0.12940986,83050.0,83043.0,0.1204283]
[1741848107018,0.07909086,83050.0,83041.0,0.00018063]
[1741848107220,0.1204306,83043.0,83042.0,0.1204294]
[1741848107419,0.1204306,83043.0,83042.0,0.0319]
[1741848108024,0.1835306,83043.0,83042.0,0.0319]
[1741848109715,0.1845306,83043.0,83042.0,0.0319]
[1741848114733,0.1845306,83043.0,83042.0,0.0634]
[1741848116031,0.1845306,83043.0,83042.0,0.1838306]
[1741848116627,0.1214291,83043.0,83042.0,0.1838306]
[1741848117028,0.1214291,83043.0,83042.0,0.0634]
[1741848117533,0.1848291,83043.0,83042.0,0.0634]
[1741848118236,0.001,83043.0,83042.0,0.2038306]
[1741848118426,0.001,83043.0,83042.0,0.3238306]
[1741848118738,0.001,83043.0,83042.0,0.2038306]
[1741848118932,0.1214291,83043.0,83042.0,0.2938306]
[1741848119234,0.001,83043.0,83042.0,0.3138306]
[1741848119631,0.1214291,83043.0,83042.0,0.2938306]
[1741848120631,0.1214291,83043.0,83042.0,0.0634]
[1741848121032,0.1838291,83043.0,83042.0,0.0634]
[1741848122237,0.1838291,83043.0,83042.0,0.1838306]
[1741848125427,0.1838291,83043.0,83042.0,0.0634]
[1741848126641,0.1838291,83043.0,83042.0,0.1838306]
[1741848128929,0.1838291,83043.0,83042.0,0.0634]
[1741848129240,0.1838291,83043.0,83042.0,0.0319]
[1741848129429,0.1838291,83043.0,83042.0,0.0647]
[1741848129836,0.1838291,83043.0,83042.0,0.1851306]
[1741848130627,0.29178142,83043.0,83042.0,0.1851306]
[1741848131437,0.29178142,83043.0,83042.0,0.4551306]
[1741848131642,0.29178142,83043.0,83042.0,0.1851306]
[1741848132546,0.26088142,83043.0,83042.0,0.1851306]
[1741848133549,0.26088142,83043.0,83042.0,0.4451306]
[1741848133741,0.22938142,83043.0,83042.0,0.4351306]
[1741848133940,0.22938142,83043.0,83042.0,0.1851306]
[1741848134141,0.10895232,83043.0,83042.0,0.4151306]
[1741848134337,0.21519905,83051.0,83044.0,0.0602137]
[1741848134538,0.21519905,83051.0,83050.0,0.120419]
[1741848134843,0.21519905,83051.0,83050.0,0.420419]
[1741848135241,0.21519905,83051.0,83050.0,0.370419]
[1741848135443,0.21519905,83051.0,83050.0,0.453419]
[1741848135643,0.21519905,83051.0,83050.0,0.454419]
[1741848135850,0.00180668,83060.0,83059.0,0.1204059]
[1741848136038,0.0655,83076.0,83070.0,0.1203871]
[1741848136237,0.0655,83076.0,83072.0,0.1203871]
[1741848136238,0.30942849,83073.0,83072.0,0.1203871]
[1741848136637,0.30942849,83073.0,83072.0,0.1833871]
[1741848136838,0.34242849,83073.0,83072.0,0.1833871]
[1741848137643,0.37572849,83073.0,83072.0,0.1833871]
[1741848138145,0.34242849,83073.0,83072.0,0.1833871]
[1741848138443,0.34542849,83073.0,83072.0,0.063]
[1741848138658,0.37872849,83073.0,83072.0,0.0306]
[1741848139039,0.1896874,83073.0,83072.0,0.0306]
[1741848139537,0.1916874,83073.0,83072.0,0.0306]
[1741848140344,0.1926874,83073.0,83072.0,0.0306]
[1741848141051,0.1926874,83073.0,83072.0,0.1509871]
[1741848141348,0.1926874,83073.0,83072.0,0.0306]
[1741848141544,0.0723,83073.0,83064.0,0.00018063]
[1741848141745,0.1203972,83065.0,83064.0,0.12057933]
[1741848142746,0.1203972,83065.0,83064.0,0.00018063]
[1741848142951,0.1814972,83065.0,83064.0,0.15207933]
[1741848143155,0.1505972,83065.0,83064.0,0.18497933]
[1741848143647,0.1515972,83065.0,83064.0,0.18497933]
[1741848144349,0.1535972,83065.0,83064.0,0.18497933]
[1741848145252,0.1505972,83065.0,83064.0,0.18497933]
[1741848145455,0.1535972,83065.0,83064.0,0.18497933]
[1741848146049,0.1555972,83065.0,83064.0,0.18497933]
[1741848147548,0.1525972,83065.0,83064.0,0.18497933]
[1741848147753,0.1545972,83065.0,83064.0,0.18497933]
[1741848148150,0.1525972,83065.0,83064.0,0.18497933]
[1741848148451,0.1545972,83065.0,83064.0,0.20497933]
[1741848148651,0.1243972,83065.0,83064.0,0.20497933]
[1741848148848,0.003,83065.0,83064.0,0.20497933]
[1741848149446,0.003,83065.0,83064.0,0.47497933]
[1741848149756,0.0601894,83078.0,83064.0,0.47497933]
[1741848149757,0.0601894,83078.0,83069.0,0.1203885]
[1741848150052,0.26399423,83072.0,83071.0,0.1203885]
[1741848150551,0.1203878,83072.0,83071.0,0.2024885]
[1741848150854,0.14360643,83074.0,83073.0,0.1203856]
[1741848151052,0.26399063,83074.0,83073.0,0.5003856]
[1741848151254,0.14360643,83074.0,83073.0,0.5003856]
[1741848151954,0.26399063,83074.0,83073.0,0.5003856]
[1741848152657,0.15160643,83074.0,83073.0,0.51275095]
[1741848154042,0.27199063,83074.0,83073.0,0.51275095]
[1741848154654,0.1283842,83074.0,83073.0,0.51275095]
[1741848155758,0.1283842,83074.0,83073.0,0.52159547]
[1741848156154,0.1605842,83074.0,83073.0,0.64327547]
[1741848157855,0.1605842,83074.0,83073.0,0.60327547]
[1741848159852,0.0402,83074.0,83073.0,0.60327547]
[1741848160151,0.008,83074.0,83073.0,0.60327547]
[1741848160751,0.06036803,83081.0,83073.0,0.48288987]
[1741848160752,0.00018063,83081.0,83073.0,0.48288987]
[1741848160952,0.18075273,83081.0,83080.0,0.1203755]
[1741848161154,0.18075273,83081.0,83080.0,0.3903755]
[1741848161353,0.18075273,83081.0,83080.0,0.4103755]
[1741848161559,0.18075273,83081.0,83080.0,0.4521755]
[1741848161954,0.18475273,83081.0,83080.0,0.4521755]
[1741848162150,0.18475273,83081.0,83080.0,0.4721755]
[1741848162356,0.18675273,83081.0,83080.0,0.4521755]
[1741848162759,0.18775273,83081.0,83080.0,0.4731755]
[1741848163355,0.18775273,83081.0,83080.0,0.1831755]
[1741848163554,0.18775273,83081.0,83080.0,0.4531755]
[1741848163757,0.18775273,83081.0,83080.0,0.1831755]
[1741848163950,0.18775273,83081.0,83080.0,0.4231755]
[1741848164158,0.18775273,83081.0,83080.0,0.4531755]
[1741848164666,0.18775273,83081.0,83080.0,0.3031755]
[1741848164959,0.18775273,83081.0,83080.0,0.1831755]
[1741848165165,0.18775273,83081.0,83080.0,0.2831755]
[1741848165352,0.18775273,83081.0,83080.0,0.1831755]
[1741848167364,0.18775273,83081.0,83080.0,0.1526755]
[1741848167564,0.18775273,83081.0,83080.0,0.0323]
[1741848171268,0.18775273,83081.0,83080.0,0.001]
[1741848173566,0.19966395,83081.0,83080.0,0.001]
[1741848173770,0.19966395,83081.0,83080.0,0.1213755]
[1741848174367,0.06737023,83081.0,83080.0,0.1213755]
[1741848174666,0.07933334,83081.0,83080.0,0.1213755]
[1741848174968,0.06737023,83081.0,83080.0,0.0327]
[1741848175765,0.06737023,83081.0,83080.0,0.001]
[1741848177464,0.07937798,83081.0,83080.0,0.001]
[1741848177671,0.14177798,83081.0,83080.0,0.001]
[1741848179256,0.14177798,83081.0,83080.0,0.0335]
[1741848179457,0.14177798,83081.0,83080.0,0.1538755]
[1741848180262,0.14177798,83081.0,83080.0,0.0335]
[1741848180458,0.14177798,83081.0,83080.0,0.001]
[1741848184275,0.12977023,83081.0,83080.0,0.1213755]
[1741848185074,0.12977023,83081.0,83080.0,0.1845755]
[1741848187877,0.12977023,83081.0,83080.0,0.4245755]
[1741848188074,0.12977023,83081.0,83080.0,0.2172755]
[1741848188274,0.12977023,83081.0,83080.0,0.22957528]
[1741848188863,0.12977023,83081.0,83080.0,0.33957528]
[1741848189069,0.00718063,83081.0,83080.0,0.25957528]
[1741848189371,0.00718063,83081.0,83080.0,0.4872755]
[1741848189769,0.00718063,83081.0,83080.0,0.49955955]
[1741848190171,0.17984484,83086.0,83085.0,0.1203682]
[1741848190378,0.17984484,83086.0,83085.0,0.3703682]
[1741848190775,0.30021164,83086.0,83085.0,0.3703682]
[1741848190975,0.30021164,83086.0,83085.0,0.4158682]
[1741848192880,0.1203668,83086.0,83085.0,0.4158682]
[1741848193384,0.1203668,83086.0,83085.0,0.42491133]
[1741848193878,0.1203668,83086.0,83085.0,0.44491133]
[1741848195176,0.180549,83088.0,83087.0,0.1203654]
[1741848195377,0.180549,83088.0,83087.0,0.1326535]
[1741848196269,0.180549,83088.0,83087.0,0.1203654]
[1741848197880,0.0306,83089.0,83088.0,0.1203639]
[1741848198076,0.1509625,83089.0,83088.0,0.4657639]
[1741848198278,0.1509625,83089.0,83088.0,0.47818475]
[1741848199276,0.1509625,83089.0,83088.0,0.33818475]
[1741848199481,0.1509625,83089.0,83088.0,0.46818475]
[1741848200483,0.1509625,83089.0,83088.0,0.46821297]
[1741848200883,0.1509625,83089.0,83088.0,0.47821297]
[1741848201778,0.0601798,83091.0,83090.0,0.120361]
[1741848201984,0.0601798,83091.0,83090.0,0.39281007]
[1741848202185,0.0601798,83091.0,83090.0,0.13281007]
[1741848202381,0.0601798,83091.0,83090.0,0.43601007]
[1741848202689,0.0909798,83091.0,83090.0,0.45601007]
[1741848203886,0.0909798,83091.0,83090.0,0.19601007]
[1741848204281,0.0909798,83091.0,83090.0,0.46601924]
[1741848204673,0.0909798,83091.0,83090.0,0.19601924]
[1741848205081,0.1220798,83091.0,83090.0,0.43601924]
[1741848205389,0.1220798,83091.0,83090.0,0.183561]
[1741848206379,0.0909798,83091.0,83090.0,0.19586136]
[1741848206582,0.0909798,83091.0,83090.0,0.31586136]
[1741848206783,0.0909798,83091.0,83090.0,0.19586136]
[1741848208288,0.0308,83091.0,83090.0,0.19586136]
[1741848209077,0.0308,83091.0,83090.0,0.29586136]
[1741848209390,0.1511596,83091.0,83090.0,0.19586136]
[1741848210880,0.1511596,83091.0,83090.0,0.43586136]
[1741848213895,0.1511596,83091.0,83090.0,0.07550036]
[1741848214391,0.1511596,83091.0,83090.0,0.04280036]
[1741848214590,0.1511596,83091.0,83090.0,0.01230036]
[1741848214787,0.1511596,83091.0,83090.0,0.13266136]
[1741848215186,0.1511596,83091.0,83090.0,0.01230036]
[1741848217194,0.29499807,83091.0,83090.0,0.01230036]
[1741848219396,0.1203625,83089.0,83088.0,0.1203637]
[1741848219695,0.1203639,83088.0,83087.0,0.1535654]
[1741848219885,0.1844639,83088.0,83087.0,0.1535654]
[1741848220295,0.1844639,83088.0,83087.0,0.0332]
[1741848220501,0.1203711,83084.0,83083.0,0.1203708]
[1741848220697,0.1203711,83084.0,83083.0,0.0321]
[1741848220893,0.1203711,83083.0,83082.0,0.00018063]
[1741848221195,0.1811711,83083.0,83082.0,0.12055323]
[1741848221893,0.1811711,83083.0,83082.0,0.15265323]
[1741848222094,0.19331019,83083.0,83082.0,0.15265323]
[1741848222391,0.19331019,83083.0,83082.0,0.03228063]
[1741848223194,0.19331019,83083.0,83082.0,0.00018063]
[1741848228014,0.25184129,83083.0,83082.0,0.00018063]
[1741848231709,0.4672612,83083.0,83082.0,0.00018063]
[1741848232107,0.1203842,83074.0,83073.0,0.00180551]
[1741848232309,0.1203842,83074.0,83073.0,0.03490551]
[1741848233106,0.1203842,83074.0,83073.0,0.00180551]
[1741848233609,0.1203842,83074.0,83073.0,0.00280551]
[1741848233798,0.1203842,83074.0,83073.0,0.00480551]
[1741848235002,0.2741112,83076.0,83065.0,0.06498063]
[1741848235003,0.1203958,83066.0,83065.0,0.06498063]
[1741848235905,0.13248785,83066.0,83065.0,0.06498063]
[1741848236301,0.13248785,83066.0,83065.0,0.06798063]
[1741848237108,0.13248785,83066.0,83065.0,0.07198063]
[1741848237507,0.13248785,83066.0,83065.0,0.04028063]
[1741848237706,0.13248785,83066.0,83065.0,0.00718063]
[1741848237912,0.120403,83061.0,83060.0,0.032]
[1741848238712,0.181803,83061.0,83060.0,0.032]
[1741848239607,0.181803,83061.0,83060.0,0.036]
[1741848240313,0.181803,83061.0,83060.0,0.041]
[1741848242912,0.181803,83061.0,83060.0,0.1614045]
[1741848243615,0.181803,83061.0,83060.0,0.041]
[1741848250008,0.1204088,83057.0,83056.0,0.0327]
[1741848250912,0.1827088,83057.0,83056.0,0.0327]
[1741848251113,0.1827088,83057.0,83056.0,0.005]
[1741848251308,0.1827088,83057.0,83056.0,0.011]
[1741848252619,0.3042288,83057.0,83053.0,1e-08]
[1741848252804,0.0602057,83056.0,83044.0,0.0317]
[1741848253010,0.1204248,83046.0,83045.0,0.0321]
[1741848253211,0.12152,83048.0,83037.0,0.21650018]
[1741848253408,0.1204364,83038.0,83037.0,0.49650018]
[1741848253711,0.1204364,83038.0,83037.0,0.60693798]
[1741848253925,0.1204364,83038.0,83037.0,0.1204378]
[1741848254122,0.1174364,83038.0,83037.0,0.1204378]
[1741848254625,0.1482364,83038.0,83037.0,0.1521378]
[1741848255123,0.1492364,83038.0,83037.0,0.1521378]
[1741848255315,0.1484364,83038.0,83037.0,0.1521378]
[1741848255722,0.1484364,83038.0,83037.0,0.1551378]
[1741848255913,0.1484364,83038.0,83037.0,0.1864378]
[1741848256517,0.1444364,83038.0,83037.0,0.1864378]
[1741848257313,0.1464364,83038.0,83037.0,0.4234378]
[1741848257619,0.1464364,83038.0,83037.0,0.1834378]
[1741848257924,0.1783364,83038.0,83037.0,0.1834378]
[1741848258124,0.28600998,83038.0,83037.0,0.1834378]
[1741848259224,0.25410998,83038.0,83037.0,0.1834378]
[1741848259420,0.25410998,83038.0,83037.0,0.4134378]
[1741848259626,0.25410998,83038.0,83037.0,0.1834378]
[1741848259924,0.25410998,83038.0,83037.0,0.2834378]
[1741848260119,0.11067358,83038.0,83037.0,0.4534378]
[1741848260422,0.11067358,83038.0,83037.0,0.4434378]
[1741848260812,0.14356477,83042.0,83041.0,0.120432]
[1741848261025,0.14356477,83042.0,83041.0,0.590432]
[1741848261526,0.14356477,83044.0,83043.0,0.1204291]
[1741848261721,0.26399247,83044.0,83043.0,0.4704291]
[1741848263128,0.26699247,83044.0,83043.0,0.4704291]
[1741848264219,0.26899247,83044.0,83043.0,0.4704291]
[1741848266127,0.1254277,83044.0,83043.0,0.4104291]
[1741848266330,0.1254277,83044.0,83043.0,0.4404291]
[1741848266730,0.1254277,83044.0,83043.0,0.4104291]
[1741848267832,0.1564277,83044.0,83043.0,0.4104291]
[1741848269435,0.120432,83041.0,83040.0,0.1854334]
[1741848269736,0.120432,83041.0,83040.0,0.4554334]
[1741848270733,0.122432,83041.0,83040.0,0.4554334]
[1741848271133,0.185332,83041.0,83040.0,0.4554334]
[1741848272134,0.185332,83041.0,83040.0,0.335]
[1741848272336,0.185332,83041.0,83040.0,0.4554335]
[1741848275035,0.0649,83041.0,83040.0,0.4754335]
[1741848275540,0.185332,83041.0,83040.0,0.4754335]
[1741848276040,0.185332,83041.0,83040.0,0.4232335]
[1741848277531,0.185332,83041.0,83040.0,0.4432335]
[1741848277730,0.0649,83041.0,83040.0,0.4432335]
[1741848277939,0.003,83041.0,83040.0,0.4232335]
[1741848278136,0.003,83041.0,83040.0,0.4632335]
[1741848278333,0.123432,83041.0,83040.0,0.4632335]
[1741848279545,0.003,83041.0,83040.0,0.4632335]
[1741848280640,0.21541991,83061.0,83053.0,0.1204146]
[1741848280840,0.21541991,83061.0,83060.0,0.1204045]
[1741848281036,0.21541991,83061.0,83060.0,0.4604045]
[1741848281742,0.21541991,83061.0,83060.0,0.5231045]
[1741848281940,0.0312,83068.0,83060.0,0.4027]
[1741848282242,0.1515929,83068.0,83067.0,0.1203943]
[1741848282451,0.1515929,83068.0,83067.0,0.6318743]
[1741848283044,0.0312,83068.0,83067.0,0.6945743]
[1741848283349,0.1515929,83068.0,83067.0,0.6945743]
[1741848283743,0.1565929,83068.0,83067.0,0.6955743]
[1741848284535,0.1615929,83068.0,83067.0,0.70750742]
[1741848288146,0.1615929,83068.0,83067.0,0.44432742]
[1741848288352,0.1615929,83068.0,83067.0,0.5228343]
[1741848288849,0.1615929,83068.0,83067.0,0.40244]
[1741848289356,0.1615929,83068.0,83067.0,0.5228343]
[1741848289746,0.1615929,83068.0,83067.0,0.001]
[1741848291154,0.0412,83068.0,83056.0,0.21579632]
[1741848291452,0.1204088,83057.0,83056.0,0.21579632]
[1741848292343,0.1204146,83053.0,83051.0,0.28779374]
[1741848292552,0.1204146,83053.0,83044.0,0.21578828]
[1741848292946,0.1204146,83053.0,83045.0,0.1204258]
[1741848293154,0.13220715,83053.0,83045.0,0.1204258]
[1741848293655,0.13220715,83053.0,83044.0,0.21578828]
[1741848294050,0.13220715,83053.0,83046.0,0.120424]
[1741848294255,0.13220715,83053.0,83044.0,0.33621508]
[1741848294256,0.14220715,83053.0,83044.0,0.33621508]
[1741848294758,0.14220715,83053.0,83045.0,0.0304]
[1741848295055,0.14220715,83053.0,83045.0,0.1508254]
[1741848295254,0.14220715,83053.0,83045.0,0.0304]
[1741848295450,0.01,83053.0,83052.0,0.26018063]
[1741848295752,0.1304146,83053.0,83052.0,0.25059673]
[1741848295942,0.1304146,83053.0,83052.0,0.14059673]
[1741848296148,0.1304146,83053.0,83052.0,0.12059673]
[1741848296345,0.1304146,83053.0,83052.0,0.23059673]
[1741848296652,0.1304146,83053.0,83052.0,0.36059673]
[1741848296845,0.1304146,83053.0,83052.0,0.23059673]
[1741848297044,0.1304146,83053.0,83052.0,0.12059673]
[1741848297347,0.1304146,83053.0,83052.0,0.14059673]
[1741848297953,0.1304146,83053.0,83052.0,0.24059673]
[1741848298254,0.1304146,83053.0,83052.0,0.12059673]
[1741848299153,0.1304146,83053.0,83052.0,0.37059673]
[1741848299355,0.1304146,83053.0,83052.0,0.12059673]
[1741848299544,0.1304146,83053.0,83052.0,0.14059673]
[1741848299741,0.1304146,83053.0,83052.0,0.40059673]
[1741848300555,0.1304146,83053.0,83052.0,0.38059673]
[1741848300747,0.01,83053.0,83052.0,0.41059673]
[1741848301258,0.1203907,83070.0,83068.0,0.1203929]
[1741848301448,0.15227203,83069.0,83068.0,0.2144929]
[1741848301649,0.03188063,83069.0,83068.0,0.4944929]
[1741848301851,0.00018063,83069.0,83068.0,0.5144929]
[1741848302247,0.00018063,83069.0,83068.0,0.526465]
[1741848302443,0.12057203,83069.0,83068.0,0.3112]
[1741848302647,0.12057203,83069.0,83068.0,0.28]
[1741848302845,0.12057203,83069.0,83068.0,0.3103]
[1741848303257,0.19087203,83069.0,83068.0,0.3113]
[1741848303557,0.20267032,83069.0,83068.0,0.001]
[1741848303951,0.20567032,83069.0,83068.0,0.001]
[1741848304349,0.1204074,83058.0,83057.0,0.1214]
[1741848304555,0.1204132,83054.0,83053.0,0.0303]
[1741848304747,0.1204132,83054.0,83053.0,0.2903]
[1741848305259,0.0638,83055.0,83054.0,0.1204132]
[1741848305559,0.1527117,83055.0,83054.0,0.4546132]
[1741848306356,0.1517117,83055.0,83054.0,0.4546132]
[1741848306658,0.1517117,83055.0,83054.0,0.0321]
[1741848306856,0.0313,83055.0,83054.0,0.1525132]
[1741848307051,0.0323,83055.0,83054.0,0.1725132]
[1741848307259,0.0333,83055.0,83054.0,0.4325132]
[1741848307453,0.0333,83055.0,83054.0,0.4646132]
[1741848307656,0.0343,83055.0,83054.0,0.4546132]
[1741848307861,0.1547117,83055.0,83054.0,0.4546132]
[1741848308162,0.0353,83055.0,83054.0,0.4546132]
[1741848308463,0.1203954,83067.0,83066.0,0.1203943]
[1741848309155,0.00018063,83069.0,83068.0,0.1203929]
[1741848309351,0.00018063,83069.0,83068.0,0.3903929]
[1741848309553,0.00018063,83069.0,83068.0,0.3703929]
[1741848309554,0.15157203,83069.0,83068.0,0.3703929]
[1741848310563,0.15457203,83069.0,83068.0,0.3703929]
[1741848310754,0.15857203,83069.0,83068.0,0.3703929]
[1741848311851,0.15857203,83069.0,83059.0,0.0602026]
[1741848312058,0.120403,83062.0,83061.0,0.1204022]
[1741848312256,0.120403,83062.0,83061.0,0.1304022]
[1741848312464,0.152503,83062.0,83061.0,0.1304022]
[1741848312659,0.0321,83062.0,83061.0,0.1304022]
[1741848312958,0.1525016,83062.0,83061.0,0.1304022]
[1741848313756,0.0321,83062.0,83061.0,0.1304022]
[1741848313957,0.0341,83062.0,83061.0,0.1504022]
[1741848315060,0.002,83062.0,83061.0,0.1504022]
[1741848315567,0.002,83062.0,83061.0,0.2718022]
[1741848316462,0.00018063,83069.0,83068.0,0.1203929]
[1741848316662,0.00018063,83069.0,83068.0,0.6003929]
[1741848316862,0.00018063,83069.0,83068.0,0.6333929]
[1741848317856,0.00418063,83069.0,83068.0,0.6333929]
[1741848318266,3e-08,83069.0,83068.0,1.00377547]
[1741848318564,3e-08,83069.0,83068.0,1.28317547]
[1741848318865,3e-08,83069.0,83068.0,1.17317547]
[1741848319252,0.33555705,83093.0,83086.0,0.1203668]
[1741848319454,0.0303,83092.0,83086.0,0.2303668]
[1741848319660,0.0018061,83087.0,83086.0,0.1303668]
[1741848319861,0.0018061,83087.0,83086.0,0.1503668]
[1741848320062,0.0018061,83087.0,83086.0,0.18238996]
[1741848320366,0.0038061,83087.0,83086.0,0.18238996]
[1741848320566,0.1241715,83087.0,83086.0,0.16238996]
[1741848320759,0.1281715,83087.0,83086.0,0.16238996]
[1741848321269,0.0078061,83087.0,83086.0,0.20238996]
[1741848321463,0.0078061,83087.0,83086.0,0.14238996]
[1741848321662,0.0078061,83087.0,83086.0,0.19338996]
[1741848322055,0.1281715,83087.0,83086.0,0.19338996]
[1741848322355,0.1601715,83087.0,83086.0,0.19338996]
[1741848323059,0.0398061,83087.0,83086.0,0.20338996]
[1741848323770,0.1601715,83087.0,83086.0,0.20338996]
[1741848324761,0.1601715,83087.0,83086.0,0.23658996]